bitfinex/quotes_BTCUSD_20250206
["timestamp","ask_amount","ask_price","bid_price","bid_amount"]
[1738869218595,0.25763365,96693.0,96692.0,0.001]
[1738869219057,0.155149,96681.0,96669.0,0.155168]
[1738869219295,0.206844,96691.0,96671.0,0.02121257]
[1738869219509,0.15515,96681.0,96671.0,0.02121257]
[1738869220209,0.17940365,96690.0,96671.0,0.02167448]
[1738869220442,0.17940365,96690.0,96672.0,0.155163]
[1738869220443,0.155143,96685.0,96672.0,0.155163]
[1738869220668,0.155143,96685.0,96673.0,0.15516]
[1738869220941,0.155143,96685.0,96671.0,0.04453083]
[1738869220942,0.0769,96690.0,96671.0,0.04556525]
[1738869221161,0.0453,96705.0,96671.0,0.04556525]
[1738869221162,0.155125,96696.0,96683.0,0.155145]
[1738869221399,0.0772,96697.0,96693.0,0.001]
[1738869221841,0.0772,96697.0,96683.0,0.036201]
[1738869222086,0.10250365,96696.0,96674.0,0.00022386]
[1738869222529,0.10250365,96696.0,96676.0,0.155157]
[1738869222776,0.155138,96688.0,96677.0,0.155155]
[1738869223017,0.155136,96690.0,96678.0,0.155153]
[1738869223247,0.155133,96692.0,96678.0,0.05377083]
[1738869223493,0.155127,96695.0,96684.0,0.155143]
[1738869223729,0.15513,96693.0,96683.0,0.155145]
[1738869223944,0.25763165,96694.0,96683.0,0.155145]
[1738869224191,0.0801,96708.0,96686.0,0.15514]
[1738869224388,0.15,96706.0,96682.0,0.155146]
[1738869224587,0.15,96704.0,96674.0,0.01103741]
[1738869224907,0.155136,96690.0,96678.0,0.155153]
[1738869225555,0.206842,96692.0,96676.0,0.155155]
[1738869225847,0.155138,96688.0,96677.0,0.155155]
[1738869226069,0.155141,96687.0,96678.0,0.001]
[1738869226270,0.155141,96686.0,96678.0,0.001]
[1738869226461,0.155135,96690.0,96679.0,0.03740764]
[1738869227009,0.155135,96690.0,96679.0,0.155152]
[1738869227436,0.155135,96690.0,96678.0,0.002]
[1738869227707,0.155135,96690.0,96679.0,0.155152]
[1738869228202,0.10250365,96698.0,96678.0,0.002]
[1738869228409,0.155152,96679.0,96678.0,0.002]
[1738869228603,0.232452,96679.0,96678.0,0.002]
[1738869228858,0.33495565,96679.0,96678.0,0.002]
[1738869229078,0.33495565,96679.0,96649.0,0.1552]
[1738869229079,0.17980365,96679.0,96650.0,0.02053067]
[1738869229289,0.10250365,96678.0,96650.0,0.02053067]
[1738869229496,0.10250365,96678.0,96650.0,0.04461231]
[1738869229703,0.12963957,96690.0,96650.0,0.04461231]
[1738869229704,0.0813,96686.0,96660.0,0.12963957]
[1738869229915,0.10250365,96691.0,96676.0,0.206876]
[1738869230120,0.0751,96702.0,96677.0,0.0206876]
[1738869230348,0.10250365,96701.0,96677.0,0.0206876]
[1738869230554,0.10250365,96701.0,96677.0,0.155155]
[1738869230555,0.155136,96690.0,96677.0,0.155155]
[1738869230759,0.23214322,96690.0,96669.0,0.0459]
[1738869230965,0.10250365,96689.0,96659.0,0.046]
[1738869231174,0.206856,96686.0,96669.0,0.155168]
[1738869231377,0.10250365,96689.0,96668.0,0.02045612]
[1738869231584,0.10250365,96689.0,96679.0,0.155151]
[1738869232407,0.10250365,96689.0,96675.0,0.206877]
[1738869232593,0.10250365,96689.0,96678.0,0.155153]
[1738869232795,0.00647248,96688.0,96678.0,0.1552916]
[1738869232943,0.10897613,96688.0,96678.0,0.1552916]
[1738869233779,0.10897613,96688.0,96679.0,0.155152]
[1738869233988,0.00647248,96687.0,96679.0,0.155152]
[1738869234591,0.00647248,96687.0,96679.0,0.03621676]
[1738869234787,0.00647248,96687.0,96678.0,0.0001386]
[1738869234991,0.00657928,96687.0,96678.0,0.0001386]
[1738869235191,0.00657928,96687.0,96681.0,0.206865]
[1738869235396,0.00657928,96687.0,96678.0,0.0001386]
[1738869235600,0.00647248,96686.0,96679.0,0.155151]
[1738869235798,0.00647248,96686.0,96678.0,0.0001386]
[1738869236227,0.00647248,96686.0,96679.0,0.155152]
[1738869236436,0.00647248,96686.0,96683.0,0.155146]
[1738869236837,0.00747248,96686.0,96685.0,0.155142]
[1738869237037,0.001,96686.0,96685.0,0.155142]
[1738869237477,0.0001068,96687.0,96686.0,0.155141]
[1738869237799,0.0001068,96687.0,96683.0,0.155144]
[1738869238641,0.0001068,96687.0,96686.0,0.155141]
[1738869240104,0.0011068,96687.0,96686.0,0.155141]
[1738869240869,0.0001068,96687.0,96686.0,0.155141]
[1738869242162,0.0001068,96687.0,96686.0,0.156141]
[1738869243529,0.0001068,96687.0,96686.0,0.306141]
[1738869244353,0.0001068,96687.0,96686.0,0.156141]
[1738869245340,0.01,96735.0,96687.0,0.155139]
[1738869245540,0.155139,96687.0,96686.0,0.01186721]
[1738869245719,0.0821,96697.0,96686.0,0.001]
[1738869245936,0.25762965,96696.0,96686.0,0.001]
[1738869246075,0.25762965,96696.0,96686.0,0.17808777]
[1738869246282,0.25762965,96696.0,96686.0,0.17708777]
[1738869246480,0.0821,96697.0,96680.0,0.206866]
[1738869246907,0.206835,96696.0,96683.0,0.155145]
[1738869247249,0.0821,96697.0,96660.0,0.20796385]
[1738869247250,0.10250365,96695.0,96660.0,0.20796385]
[1738869247366,0.206862,96683.0,96663.0,0.00022428]
[1738869247578,0.155152,96679.0,96663.0,0.00022428]
[1738869247783,0.10250365,96683.0,96664.0,0.02060528]
[1738869247996,0.10250365,96683.0,96675.0,0.155158]
[1738869248223,0.10250365,96683.0,96673.0,0.15516]
[1738869248426,0.10250365,96683.0,96678.0,0.01126819]
[1738869248633,0.01035643,96682.0,96678.0,0.0041386]
[1738869249042,0.01035643,96682.0,96678.0,0.0001386]
[1738869249274,0.0786,96679.0,96678.0,0.0031386]
[1738869249482,0.18110365,96679.0,96678.0,0.0031386]
[1738869249705,0.18110365,96679.0,96678.0,0.0011386]
[1738869249901,0.18110365,96679.0,96678.0,0.0041386]
[1738869250103,0.19146008,96679.0,96678.0,0.0031386]
[1738869250507,0.34661208,96679.0,96678.0,0.0031386]
[1738869251086,0.34661208,96679.0,96678.0,0.0001386]
[1738869251087,0.49661208,96679.0,96678.0,0.0001386]
[1738869251288,0.51961208,96679.0,96678.0,0.0001386]
[1738869251491,0.19146008,96679.0,96678.0,0.0011386]
[1738869251982,0.34661208,96679.0,96678.0,0.0011386]
[1738869252188,0.34661208,96679.0,96678.0,0.0001386]
[1738869252602,0.34661208,96679.0,96678.0,0.0011386]
[1738869252802,0.34961208,96679.0,96678.0,0.0001386]
[1738869253242,0.34961208,96679.0,96678.0,0.0011386]
[1738869253243,0.34661208,96679.0,96678.0,0.0011386]
[1738869253460,0.49961208,96679.0,96678.0,0.0011386]
[1738869253681,0.52261208,96679.0,96678.0,0.0011386]
[1738869254064,0.51961208,96679.0,96678.0,0.0011386]
[1738869254221,0.51961208,96679.0,96639.0,0.0471]
[1738869254222,0.023,96676.0,96646.0,0.01442697]
[1738869254407,0.10250365,96675.0,96653.0,0.206924]
[1738869254605,0.155172,96667.0,96654.0,0.155192]
[1738869254801,0.10250365,96666.0,96654.0,0.155192]
[1738869255006,0.155181,96662.0,96649.0,0.1552]
[1738869255301,0.155181,96661.0,96649.0,0.1552]
[1738869255515,0.10250365,96662.0,96653.0,0.155193]
[1738869255719,0.10250365,96662.0,96646.0,0.01456552]
[1738869255918,0.10250365,96662.0,96654.0,0.155192]
[1738869256151,0.10250365,96662.0,96655.0,0.15519]
[1738869256364,0.10250365,96662.0,96646.0,0.01456552]
[1738869256576,0.01035643,96674.0,96648.0,0.206936]
[1738869256788,0.206886,96672.0,96658.0,0.155185]
[1738869256996,0.155167,96670.0,96658.0,0.155185]
[1738869257201,0.10250365,96669.0,96658.0,0.155185]
[1738869257742,0.21724243,96672.0,96650.0,0.12963957]
[1738869257743,0.01035643,96672.0,96650.0,0.12963957]
[1738869257942,0.11286008,96672.0,96651.0,0.20693]
[1738869258148,0.11286008,96672.0,96653.0,0.206925]
[1738869258360,0.001,96670.0,96669.0,0.155168]
[1738869258564,0.002,96669.0,96666.0,0.155172]
[1738869258830,0.002,96669.0,96668.0,0.15517]
[1738869259038,0.001,96670.0,96669.0,0.136168]
[1738869259623,0.15,96681.0,96666.0,0.206897]
[1738869259849,0.10250365,96680.0,96666.0,0.001]
[1738869260068,0.155158,96676.0,96666.0,0.156173]
[1738869260270,0.10250365,96680.0,96666.0,0.001]
[1738869260450,0.155161,96674.0,96666.0,0.001]
[1738869260996,0.155161,96674.0,96664.0,0.155175]
[1738869261400,0.155158,96676.0,96664.0,0.155175]
[1738869261682,0.0064733,96676.0,96657.0,0.206917]
[1738869261908,0.001,96674.0,96666.0,0.155172]
[1738869262337,0.0064733,96676.0,96666.0,0.155172]
[1738869262761,0.0074733,96676.0,96656.0,0.02029641]
[1738869262988,0.15516,96675.0,96664.0,0.155175]
[1738869263196,0.10250365,96680.0,96656.0,0.02029641]
[1738869263405,0.20687,96679.0,96656.0,0.02029641]
[1738869263637,0.10250365,96678.0,96658.0,0.155185]
[1738869263872,0.155169,96669.0,96658.0,0.155185]
[1738869264045,0.001,96676.0,96660.0,0.155181]
[1738869264307,0.155165,96672.0,96660.0,0.155181]
[1738869264492,0.155164,96672.0,96661.0,0.155181]
[1738869264727,0.155169,96669.0,96658.0,0.155185]
[1738869264857,0.155169,96669.0,96653.0,0.206925]
[1738869264858,0.362052,96671.0,96655.0,0.15519]
[1738869265082,0.10250365,96672.0,96651.0,0.01357586]
[1738869265270,0.25766765,96672.0,96661.0,0.15518]
[1738869265669,0.155165,96671.0,96661.0,0.15518]
[1738869266057,0.10250365,96672.0,96658.0,0.001]
[1738869266259,0.10250365,96672.0,96650.0,0.206932]
[1738869266260,0.10250365,96672.0,96664.0,0.155175]
[1738869266473,0.10250365,96672.0,96650.0,0.12963957]
[1738869266474,0.10250365,96672.0,96656.0,0.02062644]
[1738869266649,0.155165,96671.0,96656.0,0.02062644]
[1738869266950,0.25766665,96672.0,96658.0,0.206914]
[1738869267171,0.155176,96664.0,96656.0,0.02062644]
[1738869267384,0.10250365,96672.0,96656.0,0.02062644]
[1738869267606,0.155169,96669.0,96657.0,0.155187]
[1738869267974,0.155172,96667.0,96657.0,0.139187]
[1738869268435,0.10250365,96672.0,96657.0,0.206917]
[1738869268661,0.25766865,96672.0,96661.0,0.155181]
[1738869268900,0.15517,96669.0,96657.0,0.155186]
[1738869269082,0.15517,96668.0,96657.0,0.155186]
[1738869269309,0.10250365,96672.0,96657.0,0.155186]
[1738869269524,0.10250365,96672.0,96646.0,0.01366441]
[1738869269726,0.155174,96666.0,96655.0,0.15519]
[1738869270022,0.10250365,96672.0,96654.0,0.206923]
[1738869270274,0.10250365,96672.0,96655.0,0.02277923]
[1738869270510,0.10250365,96672.0,96663.0,0.155177]
[1738869270733,0.2069598,96687.0,96663.0,0.206904]
[1738869270965,0.155144,96684.0,96664.0,0.0257104]
[1738869271207,0.10250365,96683.0,96671.0,0.206885]
[1738869271485,0.10250365,96683.0,96663.0,0.206904]
[1738869271678,0.10250365,96683.0,96664.0,0.362078]
[1738869271955,0.10250365,96683.0,96675.0,0.155158]
[1738869272351,0.25864965,96683.0,96672.0,0.206883]
[1738869272482,0.25764965,96683.0,96673.0,0.15516]
[1738869272934,0.155152,96679.0,96673.0,0.15516]
[1738869273196,0.10250365,96678.0,96673.0,0.15516]
[1738869273419,0.361996,96686.0,96678.0,0.155152]
[1738869273623,0.155149,96681.0,96675.0,0.155159]
[1738869273931,0.155152,96679.0,96672.0,0.155162]
[1738869274186,0.155152,96679.0,96673.0,0.05895772]
[1738869274379,0.155159,96675.0,96664.0,0.206902]
[1738869274671,0.155149,96681.0,96665.0,0.155174]
[1738869274875,0.155167,96671.0,96664.0,0.155175]
[1738869275072,0.155167,96671.0,96665.0,0.155173]
[1738869275297,0.155167,96671.0,96665.0,0.17591181]
[1738869275496,0.155166,96671.0,96665.0,0.02073881]
[1738869275716,60.0,97165.0,96662.0,0.0492]
[1738869275717,0.10250365,96670.0,96662.0,0.01379881]
[1738869275926,0.18020365,96670.0,96646.0,0.04882449]
[1738869276151,0.08317089,96647.0,96646.0,0.00013855]
[1738869276361,0.08317089,96647.0,96617.0,0.207002]
[1738869276362,0.15,96642.0,96617.0,0.207002]
[1738869276574,0.10250365,96647.0,96626.0,0.206983]
[1738869276783,0.01,96668.0,96625.0,0.09143667]
[1738869276784,0.0777,96662.0,96625.0,0.09143667]
[1738869276993,0.206961,96637.0,96625.0,0.09143667]
[1738869277197,0.206963,96636.0,96625.0,0.09143667]
[1738869277403,0.155237,96626.0,96625.0,0.09143667]
[1738869277602,0.10250365,96635.0,96625.0,0.09143667]
[1738869277829,0.20697,96632.0,96625.0,0.09143667]
[1738869278037,0.15,96657.0,96625.0,0.09143667]
[1738869278259,0.155219,96638.0,96625.0,0.09143667]
[1738869278449,0.10250365,96656.0,96625.0,0.09543667]
[1738869278653,0.206923,96654.0,96632.0,0.155226]
[1738869278861,0.155214,96641.0,96633.0,0.155226]
[1738869279092,0.155214,96641.0,96634.0,0.155224]
[1738869279289,0.206946,96644.0,96625.0,0.09143667]
[1738869279494,0.155209,96644.0,96636.0,0.155221]
[1738869279702,0.155207,96645.0,96625.0,0.09243667]
[1738869280119,0.155207,96645.0,96638.0,0.155217]
[1738869280327,0.206937,96648.0,96625.0,0.09143667]
[1738869280542,0.206932,96651.0,96626.0,0.206983]
[1738869280854,0.155208,96645.0,96638.0,0.155217]
[1738869281062,0.155204,96647.0,96639.0,0.155215]
[1738869281178,0.155205,96646.0,96639.0,0.155215]
[1738869281791,0.206942,96646.0,96632.0,0.206969]
[1738869281998,0.155215,96640.0,96633.0,0.155226]
[1738869282193,0.155215,96640.0,96635.0,0.02114263]
[1738869282658,0.206942,96645.0,96635.0,0.02114263]
[1738869282870,0.155216,96640.0,96635.0,0.02114263]
[1738869283045,0.206942,96646.0,96635.0,0.02114263]
[1738869283239,0.155217,96639.0,96635.0,0.02114263]
[1738869283487,0.155215,96641.0,96635.0,0.02114263]
[1738869283689,0.15522,96637.0,96630.0,0.155231]
[1738869283893,0.155217,96639.0,96632.0,0.1763945]
[1738869284050,0.155217,96639.0,96635.0,0.001]
[1738869284248,0.155218,96638.0,96632.0,0.0211675]
[1738869284486,0.206951,96641.0,96635.0,0.002]
[1738869284880,0.155217,96639.0,96635.0,0.00022449]
[1738869285279,0.155218,96639.0,96635.0,0.00022449]
[1738869285454,0.10250365,96651.0,96635.0,0.00022449]
[1738869285455,0.155221,96636.0,96635.0,0.00022449]
[1738869286468,0.206934,96649.0,96635.0,0.00022449]
[1738869286676,0.10250365,96648.0,96635.0,0.00422449]
[1738869286881,0.155221,96636.0,96635.0,0.00422449]
[1738869287300,0.155221,96636.0,96635.0,0.00322449]
[1738869287505,0.25772465,96636.0,96635.0,0.00022449]
[1738869288210,0.10250365,96636.0,96635.0,0.00022449]
[1738869288383,0.0803,96658.0,96635.0,0.00022449]
[1738869288581,0.155208,96644.0,96637.0,0.15522]
[1738869288783,0.206938,96647.0,96638.0,0.155218]
[1738869289030,0.155208,96644.0,96638.0,0.136218]
[1738869289206,0.001,96649.0,96637.0,0.155219]
[1738869289418,0.001,96649.0,96635.0,0.003]
[1738869289590,0.155209,96644.0,96638.0,0.155217]
[1738869289772,0.155209,96644.0,96639.0,0.155216]
[1738869289979,0.155209,96644.0,96637.0,0.155219]
[1738869291036,0.10250365,96657.0,96639.0,0.001]
[1738869291241,0.10250365,96657.0,96631.0,0.155228]
[1738869291577,0.10250365,96657.0,96619.0,0.206996]
[1738869291775,0.155215,96640.0,96630.0,0.155231]
[1738869292010,0.10250365,96657.0,96624.0,0.206987]
[1738869292182,0.155223,96636.0,96627.0,0.155234]
[1738869292381,0.206951,96641.0,96629.0,0.155231]
[1738869292703,0.206926,96653.0,96637.0,0.001]
[1738869292903,0.155216,96640.0,96633.0,0.0207009]
[1738869293139,0.10250365,96652.0,96633.0,0.0207009]
[1738869293324,0.155212,96642.0,96634.0,0.155224]
[1738869293743,0.155222,96636.0,96633.0,0.0207009]
[1738869293945,0.155221,96637.0,96633.0,0.0207009]
[1738869294087,0.155223,96635.0,96633.0,0.0207009]
[1738869294295,0.20696,96637.0,96633.0,0.0207009]
[1738869294492,0.155224,96634.0,96633.0,0.0207009]
[1738869294701,0.10450365,96652.0,96612.0,0.207013]
[1738869294883,0.12963957,96650.0,96613.0,0.15]
[1738869295083,0.12963957,96650.0,96600.0,0.12967957]
[1738869295084,0.0781,96647.0,96608.0,0.0966657]
[1738869295333,0.0781,96647.0,96620.0,0.02025957]
[1738869295334,0.10250365,96646.0,96620.0,0.02025957]
[1738869295671,0.155224,96634.0,96633.0,0.001]
[1738869296091,0.155224,96634.0,96633.0,0.003]
[1738869296292,0.206963,96636.0,96622.0,0.155242]
[1738869296496,0.155229,96632.0,96622.0,0.155242]
[1738869296739,0.155229,96631.0,96622.0,0.155242]
[1738869296939,0.10250365,96635.0,96620.0,0.22725457]
[1738869297148,0.155224,96634.0,96633.0,0.005]
[1738869297433,0.362192,96634.0,96633.0,0.001]
[1738869298061,0.362192,96634.0,96633.0,0.00122449]
[1738869298731,0.362192,96634.0,96633.0,0.00022449]
[1738869299212,0.362192,96634.0,96633.0,0.00222449]
[1738869299726,0.155224,96634.0,96633.0,0.00222449]
[1738869300374,0.155215,96640.0,96633.0,0.00222449]
[1738869300553,0.155224,96634.0,96633.0,0.00222449]
[1738869301017,0.25772765,96634.0,96633.0,0.00222449]
[1738869301665,0.10250365,96634.0,96633.0,0.00222449]
[1738869301867,0.15,96645.0,96633.0,0.00222449]
[1738869302075,0.155224,96635.0,96633.0,0.00022449]
[1738869302328,0.20696,96637.0,96633.0,0.00022449]
[1738869302329,0.25972765,96634.0,96633.0,0.00022449]
[1738869302520,0.26172765,96634.0,96633.0,0.00022449]
[1738869302758,0.10450365,96634.0,96633.0,0.00022449]
[1738869303006,0.002,96634.0,96633.0,0.00222449]
[1738869303172,0.002,96634.0,96633.0,0.00022449]
[1738869303173,0.25772765,96634.0,96633.0,0.00022449]
[1738869303537,0.25872765,96634.0,96633.0,0.00022449]
[1738869303738,0.25772765,96634.0,96633.0,0.00022449]
[1738869305559,0.25872765,96634.0,96633.0,0.00022449]
[1738869305763,0.157224,96634.0,96633.0,0.00022449]
[1738869305913,0.156224,96634.0,96633.0,0.00022449]
[1738869306117,0.25772765,96634.0,96633.0,0.00122449]
[1738869306337,0.156224,96634.0,96633.0,0.00022449]
[1738869306743,0.157224,96634.0,96633.0,0.00022449]
[1738869307062,0.157224,96634.0,96633.0,0.15545049]
[1738869307063,0.001,96634.0,96633.0,0.15545049]
[1738869307403,0.001,96634.0,96633.0,0.51146401]
[1738869307609,0.001,96634.0,96633.0,0.51042919]
[1738869307763,0.001,96634.0,96633.0,0.52966886]
[1738869307965,0.001,96634.0,96633.0,0.50949381]
[1738869308169,0.002,96634.0,96633.0,0.50949381]
[1738869308372,0.002,96634.0,96633.0,0.40699016]
[1738869308564,0.155199,96650.0,96642.0,0.155211]
[1738869308733,0.155199,96650.0,96643.0,0.155209]
[1738869308941,0.155199,96650.0,96643.0,0.136209]
[1738869309582,0.00013847,96659.0,96640.0,0.206951]
[1738869309583,0.00013847,96659.0,96657.0,0.155187]
[1738869309781,0.00013847,96659.0,96655.0,0.15519]
[1738869310008,0.00013847,96659.0,96657.0,0.155187]
[1738869310208,0.00013847,96659.0,96658.0,0.155186]
[1738869311158,0.00013847,96659.0,96656.0,0.0468]
[1738869311363,0.00113847,96659.0,96656.0,0.201989]
[1738869311565,0.00113847,96659.0,96656.0,0.0468]
[1738869311707,0.00113847,96659.0,96658.0,0.155186]
[1738869311913,0.00013847,96659.0,96658.0,0.155186]
[1738869312540,0.00013847,96659.0,96656.0,0.0468]
[1738869312751,0.00013847,96659.0,96644.0,0.0475]
[1738869312955,0.155186,96658.0,96652.0,0.155195]
[1738869313172,0.155189,96656.0,96647.0,0.02090488]
[1738869313369,0.155193,96654.0,96647.0,0.17610788]
[1738869313581,0.155191,96655.0,96648.0,0.155202]
[1738869313948,0.00013847,96659.0,96647.0,0.02090488]
[1738869314172,0.155199,96650.0,96647.0,0.02090488]
[1738869314390,0.20705147,96659.0,96647.0,0.22784288]
[1738869314554,0.155192,96655.0,96647.0,0.22784288]
[1738869314752,0.155192,96655.0,96649.0,0.1552]
[1738869315103,0.155186,96658.0,96651.0,0.155197]
[1738869315300,0.00013847,96659.0,96651.0,0.155197]
[1738869315541,0.00013847,96659.0,96647.0,0.02090488]
[1738869315760,0.00013847,96659.0,96658.0,0.155186]
[1738869316101,0.00013847,96659.0,96658.0,0.28292058]
[1738869316300,0.00013847,96659.0,96658.0,0.281886]
[1738869317989,0.00013847,96659.0,96658.0,0.431886]
[1738869318154,0.00013847,96659.0,96658.0,0.53438965]
[1738869318333,0.00013847,96659.0,96658.0,0.53738965]
[1738869318533,0.00013847,96659.0,96658.0,0.63521242]
[1738869318934,0.00013847,96659.0,96658.0,0.63221242]
[1738869319201,0.00013847,96659.0,96658.0,0.63121242]
[1738869319764,0.00013847,96659.0,96658.0,0.63921242]
[1738869320424,0.00013847,96659.0,96658.0,0.54238965]
[1738869320861,0.00013847,96659.0,96658.0,0.54638965]
[1738869321424,0.00013847,96659.0,96658.0,0.54238965]
[1738869321625,0.00013847,96659.0,96658.0,0.53838965]
[1738869321979,0.00013847,96659.0,96658.0,0.54738965]
[1738869322179,0.00013847,96659.0,96658.0,0.53438965]
[1738869322409,0.00013847,96659.0,96658.0,0.54338965]
[1738869322581,0.00013847,96659.0,96658.0,0.64121242]
[1738869322998,0.08317089,96682.0,96679.0,0.155151]
[1738869323201,0.08317089,96682.0,96677.0,0.155154]
[1738869323395,0.0001069,96683.0,96677.0,0.155154]
[1738869323980,0.0001069,96683.0,96677.0,0.206873]
[1738869324180,0.0001069,96683.0,96666.0,0.15]
[1738869324387,0.0001069,96683.0,96672.0,0.155163]
[1738869324590,0.206863,96682.0,96663.0,0.15]
[1738869324789,0.10261055,96683.0,96679.0,0.002]
[1738869325033,0.10261055,96683.0,96677.0,0.001]
[1738869325034,0.206865,96681.0,96677.0,0.001]
[1738869325266,0.155154,96678.0,96677.0,0.001]
[1738869325470,0.10261055,96683.0,96671.0,0.02026022]
[1738869325676,0.0001069,96683.0,96682.0,0.155147]
[1738869325878,0.0001069,96683.0,96680.0,0.362015]
[1738869326062,0.0001069,96683.0,96681.0,0.155148]
[1738869326266,0.0001069,96683.0,96680.0,0.206866]
[1738869326471,0.0001069,96683.0,96682.0,0.155147]
[1738869328071,0.0001069,96683.0,96682.0,0.156147]
[1738869328328,0.0001069,96683.0,96682.0,0.20568127]
[1738869328528,0.0001069,96683.0,96682.0,0.354647]
[1738869328743,0.0001069,96683.0,96682.0,0.356647]
[1738869329564,0.0001069,96683.0,96682.0,0.354647]
[1738869329906,0.0001069,96683.0,96682.0,0.362647]
[1738869330328,0.0001069,96683.0,96682.0,0.46915065]
[1738869330511,0.0001069,96683.0,96682.0,0.53459194]
[1738869330712,0.0001069,96683.0,96682.0,0.46915065]
[1738869331321,0.0001069,96683.0,96682.0,0.55035065]
[1738869334136,0.0001069,96683.0,96682.0,0.56727016]
[1738869334959,0.08317089,96707.0,96682.0,0.43512316]
[1738869335165,0.01666667,96710.0,96709.0,0.155104]
[1738869335601,0.01712895,96710.0,96709.0,0.155104]
[1738869337790,0.01712895,96710.0,96709.0,0.20433914]
[1738869338215,0.01712895,96710.0,96709.0,0.155104]
[1738869338478,0.01712895,96710.0,96698.0,0.563658]
[1738869338702,0.01712895,96710.0,96707.0,0.155106]
[1738869338886,0.01712895,96710.0,96708.0,0.155105]
[1738869339470,0.01712895,96710.0,96707.0,0.206808]
[1738869339681,0.01712895,96710.0,96709.0,0.0204333]
[1738869340518,0.01712895,96710.0,96698.0,0.155121]
[1738869340673,0.01712895,96710.0,96698.0,0.01724574]
[1738869340878,0.01712895,96710.0,96701.0,0.155116]
[1738869341102,0.155104,96709.0,96700.0,0.155118]
[1738869341341,0.01712895,96710.0,96703.0,0.155113]
[1738869341965,0.01712895,96710.0,96699.0,0.02054924]
[1738869342198,0.155112,96705.0,96699.0,0.02054924]
[1738869342378,0.206811,96707.0,96699.0,0.02054924]
[1738869342584,0.155114,96703.0,96699.0,0.02054924]
[1738869342842,0.155126,96696.0,96682.0,0.01674167]
[1738869343045,0.155128,96695.0,96688.0,0.02100474]
[1738869343250,0.155131,96692.0,96688.0,0.02100474]
[1738869344209,0.206814,96705.0,96688.0,0.02100474]
[1738869344410,0.155128,96694.0,96688.0,0.02100474]
[1738869344627,0.15513,96693.0,96688.0,0.02100474]
[1738869344833,0.10250365,96704.0,96688.0,0.02100474]
[1738869345033,0.155124,96697.0,96688.0,0.17614074]
[1738869345361,0.10250365,96704.0,96683.0,0.002]
[1738869345494,0.10250365,96696.0,96681.0,0.02098611]
[1738869345691,0.155137,96689.0,96688.0,0.004]
[1738869346095,0.10250365,96696.0,96681.0,0.02098611]
[1738869346344,0.155138,96688.0,96681.0,0.02098611]
[1738869346545,0.155136,96690.0,96681.0,0.02098611]
[1738869346747,0.10250365,96696.0,96681.0,0.02098611]
[1738869346994,0.10250365,96696.0,96660.0,0.20923957]
[1738869346995,0.155136,96689.0,96688.0,0.005]
[1738869347156,0.155147,96683.0,96681.0,0.001]
[1738869347379,0.155141,96686.0,96681.0,0.001]
[1738869347579,0.10250365,96696.0,96681.0,0.006]
[1738869347778,0.10250365,96696.0,96687.0,0.155138]
[1738869348030,0.0001069,96692.0,96686.0,0.206854]
[1738869348235,0.0001069,96692.0,96688.0,0.002]
[1738869348408,0.0001069,96692.0,96689.0,0.155136]
[1738869348634,0.0001069,96692.0,96688.0,0.002]
[1738869348635,0.0001069,96692.0,96691.0,0.155133]
[1738869349355,0.0001069,96692.0,96688.0,0.002]
[1738869349568,0.0001069,96692.0,96680.0,0.12963957]
[1738869349830,0.0001069,96692.0,96690.0,0.155133]
[1738869350046,0.0001069,96692.0,96688.0,0.155136]
[1738869350453,0.1552379,96692.0,96691.0,0.004]
[1738869350631,0.155136,96689.0,96688.0,0.001]
[1738869351075,0.0001069,96692.0,96688.0,0.001]
[1738869351488,0.155136,96689.0,96678.0,0.155153]
[1738869351663,0.15514,96687.0,96678.0,0.155153]
[1738869352101,0.206846,96690.0,96673.0,0.206882]
[1738869352278,0.0001069,96692.0,96680.0,0.15515]
[1738869352482,0.0001069,96692.0,96673.0,0.206882]
[1738869352634,0.155137,96689.0,96688.0,0.004]
[1738869352835,0.155137,96689.0,96688.0,0.002]
[1738869353230,0.155134,96691.0,96682.0,0.155147]
[1738869353563,0.155134,96691.0,96681.0,0.155149]
[1738869353745,0.1552379,96692.0,96688.0,0.005]
[1738869354302,0.0001069,96692.0,96691.0,0.155133]
[1738869356842,0.0001069,96692.0,96691.0,0.159133]
[1738869357037,0.0001069,96692.0,96691.0,0.160133]
[1738869359027,0.0001069,96692.0,96691.0,0.17702671]
[1738869360173,0.0001069,96692.0,96691.0,0.32806085]
[1738869360400,0.0001069,96692.0,96691.0,0.32702671]
[1738869361087,0.0001069,96692.0,96691.0,0.53722653]
[1738869362108,0.0001069,96692.0,96691.0,0.53622653]
[1738869362319,0.0001069,96692.0,96691.0,0.53822653]
[1738869362480,0.0001069,96692.0,96691.0,0.53422653]
[1738869362873,0.0001069,96692.0,96691.0,0.54122653]
[1738869363726,0.0001069,96692.0,96691.0,0.58074619]
[1738869364264,0.0001069,96692.0,96691.0,0.54122653]
[1738869365126,0.01712895,96710.0,96691.0,0.38609353]
[1738869365336,0.01712895,96710.0,96709.0,0.155104]
[1738869366207,0.01712895,96710.0,96709.0,0.203404]
[1738869366596,0.01712895,96710.0,96709.0,0.20443791]
[1738869366814,0.01712895,96710.0,96709.0,0.203404]
[1738869367368,0.0001066,96717.0,96716.0,0.305093]
[1738869367580,0.0001067,96736.0,96716.0,0.305093]
[1738869367581,0.0022311,96731.0,96730.0,0.30507]
[1738869367794,0.0022311,96731.0,96730.0,0.43057365]
[1738869367795,0.0002136,96731.0,96730.0,0.43057365]
[1738869368017,0.00035222,96731.0,96730.0,0.40757365]
[1738869368439,0.00035222,96731.0,96730.0,0.5100773]
[1738869369639,0.00035222,96731.0,96730.0,0.5220773]
[1738869369838,0.00035222,96731.0,96730.0,0.5130773]
[1738869370265,0.0001067,96736.0,96735.0,0.305062]
[1738869370568,0.0001067,96736.0,96735.0,0.5100693]
[1738869371370,0.0001069,96740.0,96739.0,0.305056]
[1738869371565,0.0001069,96740.0,96739.0,0.40755965]
[1738869371714,0.0001069,96741.0,96739.0,0.40755965]
[1738869371917,0.0001069,96741.0,96740.0,0.1035371]
[1738869372124,0.0001069,96741.0,96740.0,0.20449231]
[1738869372328,0.0001069,96741.0,96740.0,0.35449231]